Cogmind - Beta 9.2 @@@ ROGUE MODE // 2019.11.13 @ 09:18:18 Player: Demise Result: Destroyed by Y-45 Defender with Heavy Assault Rifle Performance ------------- Evolutions (2) 1000 Regions Visited (8) 1600 Robots Destroyed (56) 280 Value Destroyed (1700) 1700 Prototype IDs (22) 440 Alien Tech Used (0) 0 Bonus (1669) 1669 TOTAL SCORE: 6689 Bonus ------- High Alert Combat Kills 33 Follower Combat Kills 636 Entered Garrisons 200 Used RIF Installer 500 Aligned with FarCom 300 Cogmind --------- Core Integrity 0/550 Matter 295/300 Energy 95/100 System Corruption 1% Temperature Cool (9) Movement Treading (200) Ox2 Location -8/Storage Parts ------- > --- POWER (1) -------- (None) > --- PROPULSION (2) --- Improved Treads Armored Wheel > --- UTILITY (6) ------ Heat Sink Large Storage Unit High-capacity Storage Unit Improved Terrain Scanner Improved Terrain Scan Processor Targeting Computer > --- WEAPON (2) ------- Heavy Assault Rifle Heavy Flail > --- INVENTORY (18) --- Nuclear Core Light Nuclear Core Potential Leg Potential Leg Cooling System High-capacity Storage Unit High-capacity Battery (400) High-capacity Matter Pod (200) Advanced Sensor Array Improved Weapon Shielding Relay Coupler [NC] (24) Relay Coupler [Swarmer] (40) Heavy Particle Cannon Heavy Particle Cannon Flak Cannon Rocket Launcher Improved Datajack Katana Peak State ------------ > --- POWER ------------ Nuclear Core > --- PROPULSION ------- Potential Leg Potential Leg > --- UTILITY ---------- Improved Heat Sink Large Storage Unit High-capacity Storage Unit Improved Terrain Scan Processor Targeting Computer Transmission Jammer > --- WEAPON ----------- Ion Cannon Katana > --- INVENTORY -------- Light Nuclear Core Carbon-fiber Leg Titanium Leg Armored Wheel High-capacity Storage Unit High-capacity Battery High-capacity Matter Pod Advanced Sensor Array Improved Weapon Shielding Light Armor Plating Relay Coupler [NC] Relay Coupler [Swarmer] Relay Coupler [Swarmer] Heavy Particle Cannon Heavy Particle Cannon Rocket Launcher Improved Datajack [Rating: 44] Favorites ----------- Power Light Nuclear Core Engine Improved Ion Engine Power Core Light Nuclear Core Propulsion Aluminum Leg Treads Improved Treads Leg Aluminum Leg Wheel Wheel Utility High-capacity Storage Unit Device Improved Heat Sink Storage High-capacity Storage Unit Processor Targeting Computer Protection Light Armor Plating Weapon Katana Energy Gun Electrolaser Energy Cannon Ion Cannon Ballistic Gun Heavy Assault Rifle Ballistic Cannon Light Cannon Launcher Rocket Launcher Special Weapon Mining Laser Impact Weapon Heavy Flail Slashing Weapon Katana Build | -11 -10 -10 -10 -9 -8 -8 -8 -8 ------- Run | Scr Mat Min Exi Min Mat Gar Mat Sto Slots Evolved 4 | . . . . . 4 . . . Power . | . . . . . . . . . Propulsion . | . . . . . . . . . Utility 4 | . . . . . 4 . . . Weapon . | . . . . . . . . . Parts Attached 121 | 4 3 5 1 12 23 23 37 13 Power 13 | . 2 1 . 1 2 3 2 2 Engine 8 | . 2 1 . 1 2 1 . 1 Core 5 | . . . . . . 2 2 1 Reactor . | . . . . . . . . . Propulsion 29 | . . . . 7 5 6 6 5 Treads 1 | . . . . . . . . 1 Leg 17 | . . . . 3 2 3 6 3 Wheel 11 | . . . . 4 3 3 . 1 Hover . | . . . . . . . . . Flight . | . . . . . . . . . Utility 50 | 3 1 1 1 2 9 7 22 4 Device 27 | 1 1 . . . 6 3 14 2 Storage 7 | . . 1 1 . 1 2 2 . Processor 7 | 2 . . . 1 2 2 . . Hackware . | . . . . . . . . . Protection 9 | . . . . 1 . . 6 2 Artifact . | . . . . . . . . . Weapon 29 | 1 . 3 . 2 7 7 7 2 Energy Gun 6 | . . 1 . . 1 1 3 . Energy Cannon 2 | . . . . . . . 2 . Ballistic Gun 7 | 1 . 1 . 2 2 . . 1 Ballistic Cannon 4 | . . . . . 2 2 . . Launcher 1 | . . . . . . 1 . . Special Weapon 2 | . . 1 . . 1 . . . Impact Weapon 1 | . . . . . . . . 1 Slashing Weapon 6 | . . . . . 1 3 2 . Piercing Weapon . | . . . . . . . . . Special Melee Weapon . | . . . . . . . . . Unidentified Prototypes . | . . . . . . . . . Parts Lost 31 | . . . . 3 9 6 6 7 Power 6 | . . . . . 2 1 1 2 Propulsion 9 | . . . . 1 3 3 . 2 Utility 8 | . . . . 1 1 1 3 2 Weapon 8 | . . . . 1 3 1 2 1 Highest Loss Streak 6 | . . . . 2 5 6 2 4 Average Slot Usage (%) 98 | . 98 100 100 100 97 98 99 92 Engine 7 | . 14 14 14 14 8 6 . 3 Core 3 | . . . . . . 2 9 3 Leg 14 | . 28 28 28 8 12 10 17 2 Wheel 5 | . . . . 19 5 5 . 6 Device 12 | . 12 2 . . 18 18 16 12 Storage 15 | . . 11 14 14 15 17 18 18 Processor 16 | . 14 14 14 11 17 17 18 18 Energy Gun 5 | . 14 13 14 1 . 3 8 . Ballistic Gun 8 | . 14 14 14 26 11 3 . 5 Ballistic Cannon 1 | . . . . . 5 1 . . Slashing Weapon 4 | . . . . . . 8 7 8 Naked Turns . | . . . . . . . . . Heaviest Build 71 | 11 7 26 42 46 65 71 68 67 Greatest Support 60 | 20 20 20 20 40 26 33 60 32 Greatest Overweight (x) 23 | . . 1 2 2 4 23 3 20 Average Overweight (x) 1 | . . . 1 1 1 1 1 2 Largest Inventory Capacity 24 | 6 4 10 12 12 18 24 20 18 Average Capacity 15 | 5 4 8 10 12 16 17 18 18 Most Carried 18 | 6 4 10 11 12 13 18 18 18 Average Carried 13 | 5 4 8 10 11 10 14 17 16 Final Capacity 18 | 4 4 10 12 12 12 18 18 18 Final Carried 18 | 4 4 10 11 12 12 18 17 18 Class Distribution -------------------- 61% | Scavenger-Mutant 24% | Mutant 10% | Scavenger-Assassin 3% | Scavenger-Skirmisher Dominant Class ---------------- Mutant | -10/Materials Mutant | -10/Mines Mutant | -10/Exiles Scavenger-Mutant | -9/Mines Scavenger-Mutant | -8/Materials Scavenger-Mutant | -8/Garrison Scavenger-Mutant | -8/Materials Scavenger-Assassin | -8/Storage Resources | -11 -10 -10 -10 -9 -8 -8 -8 -8 ----------- Run | Scr Mat Min Exi Min Mat Gar Mat Sto Matter Collected 1742 | 251 39 52 . 239 363 351 327 120 Remotely . | . . . . . . . . . Salvage Created 1907 | 247 36 12 . 174 495 226 389 328 Parts 92 | 13 4 3 . 4 30 8 14 16 Haulers Intercepted 1 | . . . . . 1 . . . Recyclers Shooed 1 | . . . . . . . . 1 Parts Field Recycled . | . . . . . . . . . Retrieved Matter . | . . . . . . . . . Parts Self-Destructed . | . . . . . . . . . Prevented . | . . . . . . . . . Kills | -11 -10 -10 -10 -9 -8 -8 -8 -8 ------- Run | Scr Mat Min Exi Min Mat Gar Mat Sto Combat Hostiles Destroyed 45 | . 2 1 . 13 11 5 7 6 Melee 10 | . . . . . . 1 3 6 Guns 28 | . 2 1 . 13 9 1 2 . Cannons 3 | . . . . . 2 . 1 . AOE 3 | . . . . . . 3 . . Classes Destroyed 12 | 3 1 . . 1 3 1 3 . Worker 3 | 2 . . . . . . . 1 Tunneler 5 | 5 . . . . . . . . Hauler 1 | . . . . . 1 . . . Recycler 1 | 1 . . . . . . . . Operator 1 | . . . . . . . 1 . Swarmer 10 | . 2 1 . 1 3 3 . . Grunt 11 | . . . . . 6 . . 5 Brawler 1 | . . . . . . . 1 . Sentry 9 | . . . . . 2 1 5 1 Specialist 1 | . . . . . . 1 . . Hunter 1 | . . . . . . . 1 . Assembled 12 | . . . . 12 . . . . Best Kill Streak 5 | 4 2 1 . 5 3 4 1 2 Combat Bots Only 5 | . 2 1 . 5 3 4 1 2 Max Kills in Single Turn 2 | 1 1 1 . 1 2 2 1 1 Gunslinging . | . . . . . . . . . Exploded 2 | . . . . . . 2 . . Melee 1 | . . . . . . 1 1 1 Uniques/NPCs Destroyed . | . . . . . . . . . Combat | -11 -10 -10 -10 -9 -8 -8 -8 -8 -------- Run | Scr Mat Min Exi Min Mat Gar Mat Sto Damage Taken 3714 | . 105 21 . 442 918 580 1100 548 Core 627 | . 33 . . 36 194 96 174 94 Absorbed by Shields . | . . . . . . . . . Core Remaining (%) 86 | 100 . . . 72 . . . . Volleys Fired 154 | 17 9 4 . 38 47 15 22 2 Largest 2 | 2 2 2 . 2 2 2 2 1 Hottest 138 | 80 60 100 . 60 100 58 138 23 Shots Fired 294 | 34 18 6 . 76 92 25 41 2 Gun 249 | 34 18 4 . 76 85 11 19 2 Cannon 36 | . . . . . 6 8 22 . Launcher 6 | . . . . . . 6 . . Special 3 | . . 2 . . 1 . . . Kinetic 189 | 11 9 2 . 65 81 19 . 2 Thermal 54 | . . 2 . . 11 . 41 . Explosive 6 | . . . . . . 6 . . Electromagnetic 45 | 23 9 2 . 11 . . . . Robot Hit Streak 19 | 5 5 2 . 6 19 8 14 15 Robot Miss Streak 6 | 2 1 1 . 6 2 1 1 1 Penetration Max . | . . . . . . . . . Secondary Targets 2 | . . . . . 2 . . . Max Gunslinging Chain 1 | . . . . . 1 . . . Shots Hit Robots 246 | 19 10 2 . 39 74 32 46 24 Core Hits 101 | 11 3 1 . 27 28 12 11 8 Critical Hits 1 | 1 . . . . . . . . Critical Kills . | . . . . . . . . . Critical Parts Destroyed 1 | 1 . . . . . . . . Melee Attacks 112 | . . . . . 2 18 57 35 Impact 5 | . . . . . . . . 5 Slashing 107 | . . . . . 2 18 57 30 Piercing . | . . . . . . . . . Sneak Attacks 6 | . . . . . . . 2 4 Combat Hostiles 2 | . . . . . . . 1 1 Follow-up Attacks . | . . . . . . . . . Damage Inflicted 5364 | 256 104 8 . 440 878 1567 1185 926 Guns 1980 | 224 104 8 . 440 806 123 263 12 Cannons 580 | . . . . . 72 88 420 . Explosions 313 | 32 . . . . . 281 . . Melee 2485 | . . . . . . 1075 496 914 Ramming 6 | . . . . . . . 6 . Kinetic 1445 | 66 15 8 . 370 763 211 . 12 Thermal 830 | 32 . . . . 115 . 683 . Explosive 281 | . . . . . . 281 . . Electromagnetic 317 | 158 89 . . 70 . . . . Impact 85 | . . . . . . . . 85 Slashing 2400 | . . . . . . 1075 496 829 Piercing . | . . . . . . . . . Highest Corruption 1 | . . . . . . . . 1 Average Corruption 1 | . . . . . . . . 1 Corruption Purged . | . . . . . . . . . Effects 2 | . . . . . . . . 2 Message Errors 1 | . . . . . . . . 1 Energy Discharges 1 | . . . . . . . . 1 Overload Shots . | . . . . . . . . . Overflow Damage 273 | . . . . . . 63 133 77 Projectiles 16 | . . . . . . . 16 . Explosions . | . . . . . . . . . Melee 257 | . . . . . . 63 117 77 Knockbacks 3 | . . . . . 2 1 . . Impact . | . . . . . . . . . Kinetic 2 | . . . . . 1 1 . . Secondary 1 | . . . . . 1 . . . Self-Inflicted Damage 3 | . . . . . . . 3 . Shots . | . . . . . . . . . Rammed 1 | . . . . . . . 1 . Targets Rammed 1 | . . . . . . . 1 . Kicked . | . . . . . . . . . Crushed . | . . . . . . . . . Highest Temperature 317 | 110 60 22 . 317 6 . 180 . Average Temperature 76 | 40 36 12 . 133 3 . 58 . Received Heat Transfer 1412 | . . . . 260 459 126 315 252 Effects 1 | . . . . 1 . . . . Energy Bleed 1 | . . . . 1 . . . . Siege Activations . | . . . . . . . . . Robots Corrupted . | . . . . . . . . . Combat Hostiles . | . . . . . . . . . Parts Fried 1 | . 1 . . . . . . . Impact Corruptions . | . . . . . . . . . Robots Melted 1 | . . . . . . . 1 . Combat Hostiles 1 | . . . . . . . 1 . Parts Melted 2 | . . . . . . . 2 . Heat Transferred 1554 | . . . . . 296 . 1258 . Parts Sabotaged . | . . . . . . . . . Parts Stolen . | . . . . . . . . . Parts Stripped . | . . . . . . . . . Power Chain Reactions 1 | 1 . . . . . . . . Missiles Intercepted . | . . . . . . . . . Alert | -11 -10 -10 -10 -9 -8 -8 -8 -8 ------- Run | Scr Mat Min Exi Min Mat Gar Mat Sto Peak Influence 703 | 40 106 60 . 35 188 703 523 150 Average Influence 137 | 19 69 51 . 6 39 321 189 68 Maximum Alert Level 3 | . . . . . . 3 2 . Low Security (%) 72 | 100 100 100 . 100 100 20 57 100 Level 1 17 | . . . . . . 51 25 . Level 2 9 | . . . . . . 22 16 . Level 3 . | . . . . . . 4 . . Level 4 . | . . . . . . . . . Level 5 . | . . . . . . . . . High Security . | . . . . . . . . . Max Security . | . . . . . . . . . Squads Dispatched 11 | . 1 . . . 5 . 4 1 Investigation 3 | . 1 . . . 1 . . 1 Extermination . | . . . . . . . . . Reinforcement 5 | . . . . . 1 . 4 . Assault . | . . . . . . . . . Garrison 3 | . . . . . 3 . . . Intercept . | . . . . . . . . . Construction Impeded . | . . . . . . . . . Haulers Reinforced . | . . . . . . . . . Stealth | -11 -10 -10 -10 -9 -8 -8 -8 -8 --------- Run | Scr Mat Min Exi Min Mat Gar Mat Sto Distress Signals 9 | . 1 . . 1 1 . 6 . Communications Jammed 46 | . . . . . . . 46 . Distress Signals 46 | . . . . . . . 46 . Times Spotted 89 | . 7 3 . 13 15 16 27 8 Peak Tracking Total 9 | . 5 3 . 8 4 4 9 3 Tactical Retreats 12 | . 3 1 . 2 1 . 4 1 Traps | -11 -10 -10 -10 -9 -8 -8 -8 -8 ------- Run | Scr Mat Min Exi Min Mat Gar Mat Sto Traps Triggered 7 | . . . . . 1 5 1 . Indirectly . | . . . . . . . . . Trap Hack Attempts . | . . . . . . . . . Triggered . | . . . . . . . . . Disarmed . | . . . . . . . . . Reprogrammed . | . . . . . . . . . Reused . | . . . . . . . . . Traps Extracted . | . . . . . . . . . Installed . | . . . . . . . . . Triggered . | . . . . . . . . . Machines | -11 -10 -10 -10 -9 -8 -8 -8 -8 ---------- Run | Scr Mat Min Exi Min Mat Gar Mat Sto Machines Disabled 8 | . . . . . . 4 2 2 Max in Single Turn 2 | . . . . . . 2 1 1 Garrison Relay 2 | . . . . . . 2 . . Machines Sabotaged . | . . . . . . . . . Garrisons Compromised . | . . . . . . . . . Overloaded Fab Kills . | . . . . . . . . . Fab Network Shutdowns . | . . . . . . . . . Hacking | -11 -10 -10 -10 -9 -8 -8 -8 -8 --------- Run | Scr Mat Min Exi Min Mat Gar Mat Sto Machines Accessed 13 | . 2 . 1 . 3 . 6 1 Terminals 10 | . 2 . . . 2 . 5 1 Fabricators . | . . . . . . . . . Repair Stations . | . . . . . . . . . Recycling Units . | . . . . . . . . . Scanalyzers 1 | . . . . . . . 1 . Garrison Access 1 | . . . . . 1 . . . Total Hacks 34 | . 5 . 1 . 7 . 19 2 Successful 20 | . 3 . 1 . 4 . 12 . Failed 14 | . 2 . . . 3 . 7 2 Catastrophic 2 | . . . . . . . 2 . Database Lockouts . | . . . . . . . . . Manual 25 | . 5 . 1 . 3 . 16 . Terminals 30 | . 5 . . . 6 . 17 2 Fabricators . | . . . . . . . . . Repair Stations . | . . . . . . . . . Recycling Units . | . . . . . . . . . Scanalyzers 2 | . . . . . . . 2 . Garrison Access 1 | . . . . . 1 . . . Terminal Hacks 7 | . 2 . 1 . . . 4 . Part Schematic 2 | . 1 . . . . . 1 . Branch Access Points 2 | . 1 . . . . . 1 . Unreport Threat 2 | . . . . . . . 2 . EX-Prototype ID Bank 1 | . . . 1 . . . . . Fabricator Hacks . | . . . . . . . . . Repair Station Hacks . | . . . . . . . . . Recycling Unit Hacks . | . . . . . . . . . Scanalyzer 2 | . . . . . . . 2 . Insert Component 1 | . . . . . . . 1 . Analyze 1 | . . . . . . . 1 . Garrison Access Hacks 1 | . . . . . 1 . . . Unlock Access 1 | . . . . . 1 . . . Unauthorized Hacks 23 | . 4 . . . 6 . 13 . Terminals 10 | . 1 . . . 3 . 6 . Botnet 8 | . 1 . . . 2 . 5 . Operators 2 | . . . . . 1 . 1 . Fabricators . | . . . . . . . . . Repair Stations . | . . . . . . . . . Recycling Units . | . . . . . . . . . Scanalyzers . | . . . . . . . . . Garrison Access . | . . . . . . . . . Data Cores Recovered . | . . . . . . . . . Used . | . . . . . . . . . Hacking Detections 12 | . 2 . . . 3 . 6 1 Full Trace Events 3 | . 1 . . . 1 . . 1 Feedback Events 1 | . . . . . . . . 1 Corruption 1 | . . . . . . . . 1 Feedback Blocked . | . . . . . . . . . Robot Schematics Acquired . | . . . . . . . . . Robots Built . | . . . . . . . . . Matter . | . . . . . . . . . Time . | . . . . . . . . . Total Robot Build Rating . | . . . . . . . . . Part Schematics Acquired 3 | . 1 . . . . . 2 . Parts Built . | . . . . . . . . . Matter . | . . . . . . . . . Time . | . . . . . . . . . Total Part Build Rating . | . . . . . . . . . Parts Repaired . | . . . . . . . . . Time . | . . . . . . . . . Parts Recycled . | . . . . . . . . . Recycled Matter . | . . . . . . . . . Retrieved Matter . | . . . . . . . . . Retrieved Components . | . . . . . . . . . Parts Scanalyzed 1 | . . . . . . . 1 . Part Schematics Acquired 1 | . . . . . . . 1 . Parts Damaged 1 | . . . . . . . 1 . Bothacking | -11 -10 -10 -10 -9 -8 -8 -8 -8 ------------ Run | Scr Mat Min Exi Min Mat Gar Mat Sto Used RIF Installer 1 | . . . . . . 1 . . Robots Hacked . | . . . . . . . . . Non-combat . | . . . . . . . . . Combat . | . . . . . . . . . Robot Hacks Applied . | . . . . . . . . . Relay Couplers Released 6 | . . . . . . 6 . . Machine Destruction 6 | . . . . . . 6 . . Robots Rewired 6 | . . . . . . 6 . . Allies Hacked . | . . . . . . . . . Hacks Repelled . | . . . . . . . . . Allies | -11 -10 -10 -10 -9 -8 -8 -8 -8 -------- Run | Scr Mat Min Exi Min Mat Gar Mat Sto Total Allies 6 | . . . . . . 6 . . Largest Group 5 | . . . . . . 5 2 . Highest-Rated Group 135 | . . . . . . 135 42 . Highest-Rated Ally 38 | . . . . . . 38 21 . Total Orders 2 | . . . . . . . 2 . GOTO 2 | . . . . . . . 2 . Ally Attacks 78 | . . . . . . 58 20 . Total Damage 1994 | . . . . . . 1572 422 . Kills 23 | . . . . . . 18 5 . Allies Corrupted . | . . . . . . . . . Allies Melted 1 | . . . . 1 . . . . Intel | -11 -10 -10 -10 -9 -8 -8 -8 -8 ------- Run | Scr Mat Min Exi Min Mat Gar Mat Sto Robot Analysis Total . | . . . . . . . . . Derelict Logs Recovered 2 | . . 1 . 1 . . . . Drone Launches . | . . . . . . . . . Drone Recoveries . | . . . . . . . . . Exploration | -11 -10 -10 -10 -9 -8 -8 -8 -8 ------------- Run | Scr Mat Min Exi Min Mat Gar Mat Sto Turns Passed 6891 | 118 242 447 451 947 972 1298 1796 620 Spaces Moved 2989 | 50 172 277 292 524 239 599 672 164 Core 3 | . . . . . . 1 . 2 Treads 102 | . . . . . . . . 102 Legs 2123 | 50 172 277 292 104 140 394 672 22 Wheels 761 | . . . . 420 99 204 . 38 Hover . | . . . . . . . . . Flight . | . . . . . . . . . Fastest Speed 85 | 120 120 120 150 100 100 110 85 130 Average Speed 142 | 120 120 144 152 114 143 143 150 195 Slowest Speed 1200 | 120 120 150 180 180 240 1200 210 1050 Overloaded Moves 54 | . . . . . . . 54 . Propulsion Burnouts . | . . . . . . . . . Robots Hopped . | . . . . . . . . . Cave-ins Triggered . | . . . . . . . . . Exploration Rate (%) 42 | 4 27 63 69 97 13 54 42 9 Regions Visited 8 Branch Regions 4 Pre-discovered Areas 1 | . . 1 . . . . . . Known Exits Taken 3 | . 1 . . . 1 . 1 . Unknown Exits Taken 4 | 1 . 1 1 1 . . . . Scrap Searched 1 | . . . . 1 . . . . Spaces Dug 51 | . . 2 . . 3 . 46 . Terrain Destroyed 64 | . . 2 . . 3 9 50 . Melee 48 | . . . . . 2 . 46 . Projectile 7 | . . 2 . . 1 . 4 . AOE 9 | . . . . . . 9 . . Actions | -11 -10 -10 -10 -9 -8 -8 -8 -8 --------- Run | Scr Mat Min Exi Min Mat Gar Mat Sto Total 5177 | 78 195 315 300 805 773 986 1320 405 Wait 1583 | . 5 16 . 212 445 205 516 184 Move 2981 | 49 171 276 291 523 239 597 671 164 Hop . | . . . . . . . . . Pick Up 67 | 3 2 9 4 10 12 15 8 4 Fast Attach 21 | 1 1 1 . . 2 7 4 5 Attach 27 | . . . . 4 12 3 5 3 Detach 4 | . . . . 1 1 1 . 1 Swap 73 | 3 2 4 1 8 9 13 28 5 Drop 55 | 5 5 5 4 9 4 13 8 2 Fire 154 | 17 9 4 . 38 47 15 22 2 Melee 112 | . . . . . 2 18 57 35 Ram . | . . . . . . . . . Kick 1 | . . . . . . . 1 . Crush . | . . . . . . . . . Escape Stasis 29 | . . . . . . 29 . . Rewire 70 | . . . . . . 70 . . Trap . | . . . . . . . . . Miscellaneous . | . . . . . . . . . Route ------- -11/Scrapyard -10/Materials -10/Mines (discovered 2 exits: [*Mat] / *Exi) -10/Exiles -9/Mines (discovered 2 exits: *Mat x2) -8/Materials -8/Garrison (discovered 2 exits: *Mat x2) -8/Materials (discovered 2 exits: *Sto x2) -8/Storage History --------- Turn | Location | Event 20 | -11/Scrapyard | Discovered new exit (range 3) 119 | -11/Scrapyard | Entered Materials 276 | -10/Materials | Identified exit to Mines 314 | -10/Materials | Build established: Mutant 361 | -10/Materials | Entered Mines 437 | -10/Mines | Joined a pair of Derelicts in attacking an 0b10 outpost 738 | -10/Mines | Learned location of Zion (-6) 781 | -10/Mines | Discovered new exit (range 12) 802 | -10/Mines | Deemed a non-threat by the Exiles lab entrance 802 | -10/Mines | Discovered new exit (range 5) 808 | -10/Mines | Entered Exiles 847 | -10/Exiles | Met 8R-AWN 871 | -10/Exiles | Met EX-HEX 921 | -10/Exiles | Met EX-BIN 937 | -10/Exiles | Aligned with FarCom system 939 | -10/Exiles | Given EX-Vault access code 976 | -10/Exiles | Opened EX-Vault 985 | -10/Exiles | Found Potential Leg 987 | -10/Exiles | Found Potential Leg 1020 | -10/Exiles | Warned to stay clear of 0b10 Research branches 1062 | -10/Exiles | Met EX-DEC 1243 | -10/Exiles | Discovered new exit (range 10) 1259 | -10/Exiles | Left Exiles lab with Potential Leg 1259 | -10/Exiles | Entered Mines 1288 | -9/Mines | Assembled infested the area 1293 | -9/Mines | Assisted by a Guerilla fighting off Assembled 1831 | -9/Mines | Build established: Scavenger-Mutant 1859 | -9/Mines | Discovered new exit (range 3) 1957 | -9/Mines | Learned Materials emergency access door positions 1968 | -9/Mines | Received a Rocket Launcher from a helpful Derelict 1975 | -9/Mines | Discovered new exit (range 8) 2206 | -9/Mines | Entered Materials 2206 | -8/Materials | Evolved 4 slots: Utility x4 2352 | -8/Materials | Garrison activated, responded to threat 2438 | -8/Materials | Lost 3 parts (1p1n1u) 2538 | -8/Materials | Lost 5 parts (1p2n2w) 3178 | -8/Materials | Identified exit to Garrison 3178 | -8/Materials | Entered Garrison 3238 | -8/Garrison | Triggered checkpoint 3304 | -8/Garrison | Garrison Relay disabled 3434 | -8/Garrison | Triggered checkpoint 3544 | -8/Garrison | Triggered checkpoint 3661 | -8/Garrison | Discovered new exit (range 10) 3679 | -8/Garrison | Installed Relay Interface Framework 3741 | -8/Garrison | Core integrity fell below 50% 3771 | -8/Garrison | Lost 6 parts (1p3n1u1w) 4106 | -8/Garrison | Triggered checkpoint 4176 | -8/Garrison | Garrison Relay disabled 4386 | -8/Garrison | Triggered checkpoint 4446 | -8/Garrison | Discovered new exit (range 15) 4476 | -8/Garrison | Entered Materials 4476 | -8/Materials | Accompanied by 2 allies 4661 | -8/Materials | Discovered new exit (range 13) 4721 | -8/Materials | Discovered new exit (range 7) 5051 | -8/Materials | Identified exit to Storage 6211 | -8/Materials | Core integrity fell below 20% 6272 | -8/Materials | Entered Storage 6426 | -8/Storage | Build established: Mutant 6453 | -8/Storage | Lost 4 parts (1n2u1w) 6863 | -8/Storage | Build established: Scavenger-Assassin 6892 | -8/Storage | Destroyed by Y-45 Defender with Heavy Assault Rifle Last Messages --------------- 06551_ Acquired Flak Cannon. 06556_ Acquired Imp. Treads. 06561_ Acquired Imp. Terrain Scanner. 06576_ Dropped Aluminum Leg. 06576_ Acquired Cooling System. 06584_ R-06 Scavenger collects Aluminum Leg. 06589_ Acquired 31 matter. 06612_ //SC865LCW1VM32EE7YGTXCSVNC MU3= 06617_ Acquired Imp. Ion Engine. 06654_ K-01 Serf collects debris. 06672_ Acquired 10 matter. 06673_ K-01 Serf collects debris. 06687_ Sneak attack on K-01 Serf. 06687_ K-01 Serf destroyed. 06688_ K-01 Serf collects debris. 06708_ System corrupted: Energy discharge (-103). 06841_ Dropped Relay Coupler [Swarmer]. 06841_ Acquired Hvy. Flail. 06864_ R-06 Scavenger collects Relay Coupler [Swarmer]. 06889_ Imp. Ion Engine destroyed. Map ----- +----------------------------------------------------+ | ?????????????????????????????? | | ?????????????????????????????? | | ????????#????????????????????? | | ????##?#???###???????????????? | | ####?###??#?##?#?????????????? | | ##?###?##########????????????? | | #???#??#######?###???????????? | | #############?###????????????? | | ?#?##############??#?????????? | | ########?#?###?####?#????????? | | ############ """ "????????? | | ####### ## "?" "????????? | | ####### #? """ ?????????? | | ####### ## ?? ?????? | | ####### ## ? ?#? ??? | | ####### # ? ? ???? ?? | | ####### #############+?????? | | #######% ########### ? ????? | | ### "%+% ########?## ???? ? | | #####%#% ###########" ???? ?? | | #?##### ##########?T ??????? | | #####?# ###########" ?????? | | ####### # + ??? ?? | | ####### # """" # ??? ?#? | | # [# # ""! " # ?"???#? | | # @# # """ /" # ???"???? | | # Y %+ ![""" # "?"???? | | # # # " "" + ??? ??? | | # # # """" # ? ? ??? | | # + # ? # ???#??? | | # # ###########??#?#???? | | # # ###### ?? ??????? | | # # ###### ??? ??????? | | # # ###### ?#s?????? ? | | # # #########??##??#?#?? | | # # #####??####??#?????? | | ####### ##########????#????? | | ?###### ##??######?#???????? | | ##??### ####??##???????????? | | ####### #####?####?????????? | | ?##?#?# ###??? ??????????? | | ?#?#?# ##T#??????????????? | | #??##? # ????????????????? | | ##??##? ???????????????????? | | ##?????????#?????????????????? | | ????#????? ??????????????????? | | ???#???#?????????????????????? | | ????#????????????????????????? | | ?????????????????????????????? | | ??????##?????????????????????? | +----------------------------------------------------+ Best States ------------- Heat Dissipation 78 Energy Generation 18 Energy Capacity 290 Matter Stores 300 Matter Capacity 300 Sight Range 16 Robot Scan Range 16 Terrain Scan Range 16 Terrain Scan Density 110 Jamming Range 8 Armor Coverage 150 Weapon Shielding 66 Evasion (%) 43 Targeting Accuracy 5 Recoil Reduction 1 Item Schematics ----------------- Hcp. Storage Unit | -10/Materials | Hacked Adv. Sensor Array | -8/Materials | Scanalyzed Adv. Terrain Scanner | -8/Materials | Hacked Robot Schematics ------------------ None Fabricated ------------ Nothing Alien Tech Used ----------------- None Achievements -------------- None Challenges ------------ None Game ------ Seed CombatDamperSink Manual? 0 Play Time 01:14:20 Cumulative 116.3 hours Start 2019.11.13 @ 08:04:36 End 2019.11.13 @ 09:18:18 Sessions 1 Manual Loads 0 Difficulty Rogue Special Mode None Game No. 152 Rogue 141 Adventurer 11 Explorer 0 Win Type - Total 0 Types 0/0/0/0/0/0/0 Lore% 43 Gallery% 54 Achievement% 37 Wizard Run 0 Options --------- ASCII 0 Keyboard 1 Movement Numpad Keybinds 0 Fullscreen 1 Font 12/Terminus Map View 83x54 Tactical HUD 1 Map Filters NONE Filters NONE Steam 1 RUN: 669b4d1b-2675-4e8d-9654-fde17489c8f0